[Event "NSV Open-ch Rapid 2019"]
[Site "Lueneburg"]
[Date "2019.08.03"]
[Round "1.2"]
[White "Lai Hop, Long"]
[Black "Schneider, Ilja"]
[Result "0-1"]
[ECO "D15"]
[WhiteElo "1817"]
[BlackElo "2494"]
[Annotator "RC"]
[PlyCount "98"]
[EventDate "2019.08.03"]
[EventType "swiss"]
[EventCountry "GER"]
[SourceTitle "playchess.com"]
[Source "ChessBase"]
[SourceQuality "1"]
[TimeControl "600+5"]

1. c4 {[%emt 0:00:00]} c6 {[%emt 0:00:00]} 2. d4 {[%emt 0:00:00]} d5 {[%emt 0:00:00]} 3. Nf3 {[%emt 0:00:00]} Nf6 {[%emt 0:00:00]} 4. Nc3 {[%emt 0:00:03]} a6 {[%emt 0:00:00]} 5. g3 {[%emt 0:00:10]} b5 {[%emt 0:00:13]} 6. cxd5 {[%emt 0:00:17]} cxd5 {[%emt 0:00:01]} 7. Bg2 {[%emt 0:00:05]} e6 {[%emt 0:00:27]} 8. O-O {[%emt 0:00:12]} Bd6 {[%emt 0:00:09]} 9. Bg5 {[%emt 0:00:32]} Bb7 {[%emt 0:00:04]} 10. Re1 {[%emt 0:00:09]} Nbd7 {[%emt 0:00:13]} 11. Rc1 {[%emt 0:00:14]} O-O {[%emt 0:00:02]} 12. Nd2 {[%emt 0:00:16]} h6 {[%emt 0:01:15]} 13. Bxf6 {[%emt 0:00:06]} Nxf6 {[%emt 0:00:10]} 14. e4 {[%emt 0:00:01]} dxe4 {[%emt 0:08:36]} 15. Ndxe4 {[%emt 0:00:06]} Nxe4 {[%emt 0:00:00]} 16. Nxe4 {[%emt 0:00:07]} Be7 {[%emt 0:00:00]} 17. Re2 {[%emt 0:00:26]} Rc8 {[%emt 0:00:00]} 18. Rec2 {[%emt 0:00:16]} Rxc2 {[%emt 0:00:00]} 19. Rxc2 {[%emt 0:00:07]} Qa8 {[%emt 0:00:00]} 20. f3 {[%emt 0:00:19]} Rd8 {[%emt 0:00:00]} 21. Rd2 {[%emt 0:00:27]} Bd5 {[%emt 0:00:00]} 22. a3 {[%emt 0:00:43]} Qa7 {[%emt 0:00:00]} 23. b4 {[%emt 0:00:12]} Bxe4 {[%emt 0:00:00]} 24. fxe4 {[%emt 0:00:07]} Bg5 {[%emt 0:00:00]} 25. Rd3 {[%emt 0:00:06]} e5 {[%emt 0:00:00]} 26. Kh1 {[%emt 0:00:02]} Rc8 {[%emt 0:00:00]} 27. Qe2 {[%emt 0:00:25]} Rc1+ {[%emt 0:00:00]} 28. Rd1 {[%emt 0:00:07]} Qxd4 {[%emt 0:00:00]} 29. Bf3 {[%emt 0:00:48]} Rxd1+ {[%emt 0:00:00]} 30. Qxd1 {[%emt 0:00:01]} Qc3 {[%emt 0:00:00]} 31. Be2 {[%emt 0:00:45]} Qxa3 {[%emt 0:00:00]} 32. Qd6 {[%emt 0:00:20]} Qe3 {[%emt 0:00:00]} 33. Qd3 {[%emt 0:00:12]} Qxd3 {[%emt 0:01:35]} 34. Bxd3 {[%emt 0:00:01]} Be7 {[%emt 0:00:00]} 35. Kg2 {[%emt 0:00:04]} Bxb4 {[%emt 0:00:00]} 36. Kf3 {[%emt 0:00:02]} Kf8 {[%emt 0:00:00]} 37. Ke2 {[%emt 0:00:02]} Ke7 {[%emt 0:00:00]} 38. Kd1 {[%emt 0:00:05]} Kd6 {[%emt 0:00:00]} 39. Kc2 {[%emt 0:00:05]} Kc5 {[%emt 0:00:00]} 40. h3 {[%emt 0:00:04]} Be1 {[%emt 0:00:00]} 41. g4 {[%emt 0:00:02]} a5 {[%emt 0:00:00]} 42. Kd1 {[%emt 0:00:09]} Bh4 {[%emt 0:00:00]} 43. Kc2 {[%emt 0:05:20]} a4 44. Kb2 {[%emt 0:00:00]} b4 {[%emt 0:00:00]} 45. Ba6 {[%emt 0:00:00]} Bf2 {[%emt 0:00:00]} 46. Bc8 {[%emt 0:00:00]} Bd4+ {[%emt 0:00:00]} 47. Kb1 {[%emt 0:00:00]} b3 {[%emt 0:00:00]} 48. Bd7 {[%emt 0:00:00]} a3 {[%emt 0:00:00]} 49. Be8 {[%emt 0:00:00]} a2+ {[%emt 0:00:00]} 0-1

[Event "NSV Open-ch Rapid 2019"]
[Site "Lueneburg"]
[Date "2019.08.03"]
[Round "1.3"]
[White "Lubbe, Nikolas"]
[Black "Wirries, Frank-Michael"]
[Result "1-0"]
[ECO "B08"]
[WhiteElo "2431"]
[BlackElo "1858"]
[Annotator "ChessBase"]
[PlyCount "49"]
[EventDate "2019.08.03"]
[EventType "swiss"]
[EventCountry "GER"]
[SourceTitle "playchess.com"]
[Source "ChessBase"]
[SourceQuality "1"]
[TimeControl "600+5"]

1. d4 {[%emt 0:00:00]} Nf6 {[%emt 0:00:00]} 2. Nc3 {[%emt 0:00:00]} g6 {[%emt 0:00:05]} 3. e4 {[%emt 0:00:03]} d6 {[%emt 0:00:02]} 4. Nf3 {[%emt 0:00:07]} Bg7 {[%emt 0:00:02]} 5. Be2 {[%emt 0:00:08]} O-O {[%emt 0:00:08]} 6. O-O {[%emt 0:00:04]} Nbd7 {[%emt 0:00:28]} 7. h3 {[%emt 0:00:15]} c6 {[%emt 0:00:19]} 8. Be3 {[%emt 0:01:20]} Qc7 {[%emt 0:00:52]} 9. a4 {[%emt 0:00:17]} e5 {[%emt 0:00:54]} 10. dxe5 {[%emt 0:00:12]} dxe5 {[%emt 0:00:03]} 11. Qd2 {[%emt 0:00:16]} Nh5 {[%emt 0:00:44]} 12. Rfd1 {[%emt 0:00:38]} Nf4 {[%emt 0:00:25]} 13. Bf1 {[%emt 0:00:22]} Nf6 {[%emt 0:00:29]} 14. Bc5 {[%emt 0:00:32]} Re8 {[%emt 0:01:50]} 15. Bd6 {[%emt 0:00:03]} Qb6 {[%emt 0:00:09]} 16. a5 {[%emt 0:00:06]} Qd8 {[%emt 0:00:24]} 17. Bxe5 {[%emt 0:01:12]} Qxd2 {[%emt 0:00:13]} 18. Rxd2 {[%emt 0:00:01]} Nxe4 {[%emt 0:00:13]} 19. Nxe4 {[%emt 0:01:27]} Bxe5 {[%emt 0:00:19]} 20. Nxe5 {[%emt 0:00:04]} Rxe5 {[%emt 0:00:15]} 21. Rd8+ {[%emt 0:00:02]} Kg7 {[%emt 0:00:06]} 22. Nd6 {[%emt 0:00:01]} Ne6 {[%emt 0:01:18]} 23. Rxc8 {[%emt 0:00:03]} Rxc8 {[%emt 0:00:01]} 24. Nxc8 {[%emt 0:00:01]} Rd5 {[%emt 0:00:01]} 25. Nxa7 {[%emt 0:00:13]} 1-0

[Event "NSV Open-ch Rapid 2019"]
[Site "Lueneburg"]
[Date "2019.08.03"]
[Round "1.4"]
[White "Kotyk, Michael"]
[Black "Jahncke, Giso"]
[Result "0-1"]
[ECO "A06"]
[WhiteElo "1998"]
[BlackElo "2325"]
[Annotator "ChessBase"]
[PlyCount "100"]
[EventDate "2019.08.03"]
[EventType "swiss"]
[EventCountry "GER"]
[SourceTitle "playchess.com"]
[Source "ChessBase"]
[SourceQuality "1"]
[TimeControl "600+5"]

1. Nf3 {[%emt 0:01:14]} d5 {[%emt 0:00:00]} 2. b3 {[%emt 0:00:01]} Nf6 {[%emt 0:00:02]} 3. Bb2 {[%emt 0:00:01]} e6 {[%emt 0:10:13]} 4. e3 Be7 {[%emt 0:00:05]} 5. g4 O-O {[%emt 0:00:00]} 6. g5 {[%emt 0:00:01]} Ne4 {[%emt 0:00:00]} 7. h4 {[%emt 0:00:01]} c5 {[%emt 0:00:00]} 8. d3 {[%emt 0:00:01]} Nd6 {[%emt 0:00:00]} 9. Nbd2 {[%emt 0:00:06]} Nc6 {[%emt 0:00:00]} 10. Qe2 {[%emt 0:00:43]} Re8 {[%emt 0:00:00]} 11. e4 {[%emt 0:00:04]} Bf8 {[%emt 0:00:00]} 12. Bh3 {[%emt 0:00:32]} dxe4 {[%emt 0:00:00]} 13. Nxe4 {[%emt 0:00:20]} Nxe4 {[%emt 0:00:00]} 14. Qxe4 {[%emt 0:00:37]} Qd5 {[%emt 0:00:00]} 15. O-O-O {[%emt 0:00:25]} b6 {[%emt 0:00:00]} 16. c4 {[%emt 0:03:06]} Qxe4 {[%emt 0:00:00]} 17. dxe4 {[%emt 0:00:01]} Bb7 {[%emt 0:00:00]} 18. Rd7 {[%emt 0:00:01]} Na5 {[%emt 0:00:00]} 19. Ne5 {[%emt 0:01:05]} Bxe4 {[%emt 0:00:00]} 20. Rhd1 {[%emt 0:00:01]} Be7 {[%emt 0:00:00]} 21. Bc3 {[%emt 0:01:12]} Nc6 {[%emt 0:00:00]} 22. Nxc6 {[%emt 0:00:42]} Bxc6 {[%emt 0:00:00]} 23. Rc7 {[%emt 0:00:01]} Be4 {[%emt 0:00:00]} 24. Rdd7 {[%emt 0:00:02]} Bd8 {[%emt 0:00:00]} 25. Bxe6 {[%emt 0:00:26]} Bxc7 {[%emt 0:00:00]} 26. Bxf7+ {[%emt 0:00:03]} Kf8 {[%emt 0:00:00]} 27. Bxe8 {[%emt 0:00:01]} Bf4+ {[%emt 0:00:00]} 28. Kb2 {[%emt 0:00:01]} Kxe8 {[%emt 0:00:00]} 29. Rxg7 {[%emt 0:00:05]} Rd8 {[%emt 0:00:00]} 30. Bf6 {[%emt 0:00:34]} Rd7 {[%emt 0:00:00]} 31. Rg8+ {[%emt 0:00:04]} Kf7 {[%emt 0:00:00]} 32. Rh8 {[%emt 0:00:32]} Rd2+ {[%emt 0:00:00]} 33. Ka3 {[%emt 0:00:00]} Rxf2 {[%emt 0:00:00]} 34. Bb2 {[%emt 0:00:31]} Be3 {[%emt 0:00:00]} 35. Rc8 {[%emt 0:00:04]} Bd4 {[%emt 0:00:00]} 36. Rc7+ {[%emt 0:00:03]} Ke6 {[%emt 0:00:00]} 37. Bxd4 {[%emt 0:00:24]} cxd4 {[%emt 0:00:00]} 38. h5 {[%emt 0:00:00]} Rh2 {[%emt 0:00:00]} 39. g6 {[%emt 0:00:00]} hxg6 {[%emt 0:00:00]} 40. hxg6 {[%emt 0:00:02]} Bxg6 {[%emt 0:00:00]} 41. c5 {[%emt 0:00:10]} bxc5 {[%emt 0:00:00]} 42. Rxc5 {[%emt 0:00:03]} d3 {[%emt 0:00:00]} 43. Rc6+ {[%emt 0:00:02]} Kf5 {[%emt 0:00:00]} 44. Rd6 {[%emt 0:00:08]} d2 {[%emt 0:00:00]} 45. b4 {[%emt 0:00:03]} Bh5 {[%emt 0:00:00]} 46. Rd3 {[%emt 0:00:17]} d1=Q {[%emt 0:00:00]} 47. Rb3 {[%emt 0:00:00]} Qxb3+ {[%emt 0:00:01]} 48. axb3 {[%emt 0:00:00]} Ke6 {[%emt 0:00:08]} 49. b5 {[%emt 0:00:00]} Kd6 {[%emt 0:00:02]} 50. b6 {[%emt 0:00:00]} axb6 {[%emt 0:00:03]} 0-1

[Event "NSV Open-ch Rapid 2019"]
[Site "Lueneburg"]
[Date "2019.08.03"]
[Round "1.6"]
[White "Weidenhoefer, Max"]
[Black "Ertan, Can"]
[Result "0-1"]
[ECO "C54"]
[WhiteElo "1805"]
[BlackElo "2396"]
[Annotator "ChessBase"]
[PlyCount "94"]
[EventDate "2019.08.03"]
[EventType "swiss"]
[EventCountry "GER"]
[SourceTitle "playchess.com"]
[Source "ChessBase"]
[SourceQuality "1"]
[TimeControl "600+5"]

1. e4 {[%emt 0:00:00]} e5 {[%emt 0:00:00]} 2. Nf3 {[%emt 0:00:00]} Nc6 {[%emt 0:00:00]} 3. Bc4 {[%emt 0:00:00]} Bc5 {[%emt 0:00:00]} 4. c3 {[%emt 0:00:00]} Nf6 {[%emt 0:00:00]} 5. d3 {[%emt 0:00:00]} O-O {[%emt 0:00:02]} 6. O-O {[%emt 0:00:05]} d6 {[%emt 0:00:02]} 7. Nbd2 {[%emt 0:00:05]} a6 {[%emt 0:00:03]} 8. Bb3 {[%emt 0:00:05]} Ba7 {[%emt 0:00:01]} 9. Re1 {[%emt 0:00:05]} Be6 {[%emt 0:00:04]} 10. Nf1 {[%emt 0:00:07]} Ng4 {[%emt 0:00:39]} 11. Ne3 {[%emt 0:00:10]} Nxe3 {[%emt 0:00:10]} 12. Bxe3 {[%emt 0:00:02]} Re8 {[%emt 0:00:38]} 13. Bc2 {[%emt 0:00:14]} d5 {[%emt 0:00:05]} 14. Qe2 {[%emt 0:00:41]} d4 {[%emt 0:00:08]} 15. Bd2 {[%emt 0:00:14]} h6 {[%emt 0:00:34]} 16. h3 {[%emt 0:00:30]} Qf6 {[%emt 0:00:24]} 17. c4 {[%emt 0:00:24]} Ne7 {[%emt 0:00:16]} 18. Ba4 {[%emt 0:00:31]} c6 {[%emt 0:00:11]} 19. Nh2 {[%emt 0:00:14]} Qg6 {[%emt 0:00:28]} 20. Kh1 {[%emt 0:00:15]} b5 {[%emt 0:00:17]} 21. Bb3 {[%emt 0:00:38]} c5 {[%emt 0:01:50]} 22. Bc2 {[%emt 0:00:42]} bxc4 {[%emt 0:00:18]} 23. dxc4 {[%emt 0:00:02]} Rab8 {[%emt 0:00:05]} 24. b3 {[%emt 0:00:07]} Bb6 {[%emt 0:00:08]} 25. Ng4 {[%emt 0:00:24]} Nc6 {[%emt 0:00:16]} 26. Qf3 {[%emt 0:00:25]} Rbd8 {[%emt 0:00:41]} 27. Bd3 {[%emt 0:00:02]} Bc8 {[%emt 0:00:42]} 28. a3 {[%emt 0:00:46]} Ba5 {[%emt 0:00:04]} 29. Bxa5 {[%emt 0:00:17]} Nxa5 {[%emt 0:00:01]} 30. Rab1 {[%emt 0:00:07]} h5 {[%emt 0:00:17]} 31. Nh2 {[%emt 0:00:10]} Be6 {[%emt 0:00:00]} 32. Be2 {[%emt 0:00:15]} Rb8 {[%emt 0:00:26]} 33. Nf1 {[%emt 0:00:21]} Rb7 {[%emt 0:00:17]} 34. Nd2 {[%emt 0:00:03]} Reb8 {[%emt 0:00:05]} 35. Rb2 {[%emt 0:00:10]} Qg5 {[%emt 0:00:15]} 36. Reb1 {[%emt 0:00:12]} g6 {[%emt 0:00:20]} 37. b4 {[%emt 0:00:16]} Nc6 {[%emt 0:00:04]} 38. b5 {[%emt 0:00:09]} axb5 {[%emt 0:00:01]} 39. cxb5 {[%emt 0:00:10]} Na5 {[%emt 0:00:01]} 40. Rc2 {[%emt 0:00:21]} Qe7 {[%emt 0:01:23]} 41. a4 {[%emt 0:00:10]} Rc8 {[%emt 0:00:12]} 42. Nc4 {[%emt 0:00:03]} Bxc4 {[%emt 0:00:28]} 43. Bxc4 {[%emt 0:00:00]} Rb6 {[%emt 0:00:01]} 44. Qg3 {[%emt 0:00:21]} Rd8 {[%emt 0:00:02]} 45. Qxg6+ {[%emt 0:00:03]} Rxg6 {[%emt 0:00:01]} 46. Bd5 {[%emt 0:00:06]} Rb6 {[%emt 0:00:15]} 47. Rbc1 {[%emt 0:00:04]} Rc8 {[%emt 0:00:02]} 0-1

[Event "NSV Open-ch Rapid 2019"]
[Site "Lueneburg"]
[Date "2019.08.03"]
[Round "1.8"]
[White "Colbow, Collin"]
[Black "Bach, Matthias"]
[Result "1/2-1/2"]
[ECO "B29"]
[WhiteElo "2167"]
[BlackElo "2241"]
[Annotator "ChessBase"]
[PlyCount "104"]
[EventDate "2019.08.03"]
[EventType "swiss"]
[EventCountry "GER"]
[SourceTitle "playchess.com"]
[Source "ChessBase"]
[SourceQuality "1"]
[TimeControl "600+5"]

1. e4 {[%emt 0:00:00]} c5 {[%emt 0:00:00]} 2. Nf3 {[%emt 0:00:00]} Nf6 {[%emt 0:00:00]} 3. Nc3 {[%emt 0:00:06]} d5 {[%emt 0:00:00]} 4. exd5 {[%emt 0:00:02]} Nxd5 {[%emt 0:00:00]} 5. d4 {[%emt 0:00:01]} Nxc3 {[%emt 0:00:10]} 6. bxc3 {[%emt 0:00:01]} g6 {[%emt 0:00:02]} 7. Bd3 {[%emt 0:00:43]} Bg7 {[%emt 0:00:05]} 8. h3 {[%emt 0:00:22]} O-O {[%emt 0:00:03]} 9. O-O {[%emt 0:00:24]} Nc6 {[%emt 0:00:12]} 10. Be4 {[%emt 0:00:45]} cxd4 {[%emt 0:00:07]} 11. Bxc6 {[%emt 0:00:01]} bxc6 {[%emt 0:00:01]} 12. cxd4 {[%emt 0:00:02]} Be6 {[%emt 0:01:06]} 13. c3 {[%emt 0:00:07]} Qa5 {[%emt 0:00:16]} 14. Bd2 {[%emt 0:00:07]} Rfd8 {[%emt 0:00:34]} 15. Qe2 {[%emt 0:00:27]} Qb5 {[%emt 0:00:50]} 16. Qxb5 {[%emt 0:00:16]} cxb5 {[%emt 0:00:01]} 17. Rfe1 {[%emt 0:00:04]} Kf8 {[%emt 0:02:34]} 18. Ne5 {[%emt 0:00:02]} Rdc8 {[%emt 0:00:19]} 19. a4 {[%emt 0:00:35]} a6 {[%emt 0:00:11]} 20. d5 {[%emt 0:00:10]} Bxe5 {[%emt 0:00:30]} 21. Rxe5 {[%emt 0:00:09]} Bd7 {[%emt 0:00:11]} 22. Bh6+ {[%emt 0:01:36]} Ke8 {[%emt 0:00:00]} 23. Bg5 {[%emt 0:00:08]} e6 {[%emt 0:00:01]} 24. dxe6 {[%emt 0:00:13]} Bxe6 {[%emt 0:00:04]} 25. axb5 {[%emt 0:00:07]} axb5 {[%emt 0:00:17]} 26. Rxa8 {[%emt 0:00:02]} Rxa8 {[%emt 0:00:00]} 27. Rxb5 {[%emt 0:00:04]} Kd7 {[%emt 0:00:05]} 28. Kh2 {[%emt 0:00:54]} Kc6 {[%emt 0:00:10]} 29. Rb4 {[%emt 0:00:17]} Ra5 {[%emt 0:00:22]} 30. Be3 {[%emt 0:00:05]} Rb5 {[%emt 0:00:10]} 31. g4 {[%emt 0:01:04]} Rxb4 {[%emt 0:00:14]} 32. cxb4 {[%emt 0:00:01]} h5 {[%emt 0:00:01]} 33. gxh5 {[%emt 0:00:21]} gxh5 {[%emt 0:00:01]} 34. Kg3 {[%emt 0:00:04]} Bd5 {[%emt 0:00:18]} 35. Kf4 {[%emt 0:00:14]} Kd6 {[%emt 0:00:14]} 36. Kg5 {[%emt 0:00:26]} Bf3 {[%emt 0:00:02]} 37. Kf6 {[%emt 0:00:01]} Bd5 {[%emt 0:00:01]} 38. b5 {[%emt 0:00:42]} Kc7 {[%emt 0:00:16]} 39. b6+ {[%emt 0:00:02]} Kb7 {[%emt 0:00:01]} 40. h4 {[%emt 0:00:19]} Kc6 {[%emt 0:00:04]} 41. Kg5 {[%emt 0:00:37]} Bf3 {[%emt 0:00:02]} 42. Kf4 {[%emt 0:00:02]} Bd5 {[%emt 0:00:08]} 43. Ke5 {[%emt 0:00:24]} Bf3 {[%emt 0:00:10]} 44. Bd4 {[%emt 0:00:01]} Kb7 {[%emt 0:00:06]} 45. Kd6 {[%emt 0:00:02]} Bc6 {[%emt 0:00:15]} 46. f4 {[%emt 0:01:10]} Bf3 {[%emt 0:00:04]} 47. f5 {[%emt 0:00:02]} Be4 {[%emt 0:00:07]} 48. Ke5 {[%emt 0:00:01]} Bf3 {[%emt 0:00:03]} 49. Kf6 {[%emt 0:00:02]} Bd5 {[%emt 0:00:02]} 50. Kg5 {[%emt 0:00:09]} Bf3 {[%emt 0:00:01]} 51. f6 {[%emt 0:00:09]} Bg4 {[%emt 0:00:28]} 52. Kh6 {[%emt 0:00:07]} Kc6 {[%emt 0:00:00]} 1/2-1/2

[Event "NSV Open-ch Rapid 2019"]
[Site "Lueneburg"]
[Date "2019.08.03"]
[Round "1.10"]
[White "Dralle, Hannes"]
[Black "Voege, Tobias"]
[Result "0-1"]
[ECO "B38"]
[WhiteElo "1732"]
[BlackElo "2303"]
[Annotator "ChessBase"]
[PlyCount "78"]
[EventDate "2019.08.03"]
[EventType "swiss"]
[EventCountry "GER"]
[SourceTitle "playchess.com"]
[Source "ChessBase"]
[SourceQuality "1"]
[TimeControl "600+5"]

1. e4 {[%emt 0:00:00]} c5 {[%emt 0:00:00]} 2. Nf3 {[%emt 0:00:00]} Nc6 {[%emt 0:00:00]} 3. d4 {[%emt 0:00:00]} cxd4 {[%emt 0:00:00]} 4. Nxd4 {[%emt 0:00:01]} g6 {[%emt 0:00:00]} 5. c4 {[%emt 0:00:05]} Bg7 {[%emt 0:00:00]} 6. Be3 {[%emt 0:00:01]} Nf6 {[%emt 0:00:01]} 7. Nc3 {[%emt 0:00:24]} O-O {[%emt 0:00:04]} 8. Be2 {[%emt 0:00:12]} d6 {[%emt 0:00:01]} 9. f3 {[%emt 0:00:15]} Nxd4 {[%emt 0:00:03]} 10. Bxd4 {[%emt 0:00:02]} a5 {[%emt 0:00:01]} 11. O-O {[%emt 0:00:13]} Bd7 {[%emt 0:00:02]} 12. Qd2 {[%emt 0:00:27]} Bc6 {[%emt 0:00:02]} 13. Nd5 {[%emt 0:00:27]} Nd7 {[%emt 0:00:11]} 14. Bxg7 {[%emt 0:00:08]} Kxg7 {[%emt 0:00:01]} 15. Qd4+ {[%emt 0:00:21]} Kg8 {[%emt 0:00:05]} 16. Rae1 {[%emt 0:00:40]} Bxd5 {[%emt 0:00:22]} 17. exd5 {[%emt 0:00:13]} Qb6 {[%emt 0:00:03]} 18. Qxb6 {[%emt 0:00:16]} Nxb6 {[%emt 0:00:02]} 19. Bd3 {[%emt 0:00:18]} Rfe8 {[%emt 0:00:13]} 20. Re2 {[%emt 0:00:05]} Kf8 {[%emt 0:00:15]} 21. f4 {[%emt 0:00:30]} Nd7 {[%emt 0:01:09]} 22. g4 {[%emt 0:00:27]} Rac8 {[%emt 0:00:40]} 23. h4 {[%emt 0:00:34]} Rc7 {[%emt 0:00:25]} 24. b3 {[%emt 0:00:28]} a4 {[%emt 0:00:27]} 25. h5 {[%emt 0:01:02]} axb3 {[%emt 0:00:25]} 26. axb3 {[%emt 0:00:01]} Nf6 {[%emt 0:00:59]} 27. hxg6 {[%emt 0:00:27]} hxg6 {[%emt 0:00:08]} 28. f5 {[%emt 0:00:37]} g5 {[%emt 0:00:16]} 29. Rg2 {[%emt 0:00:12]} Ra8 {[%emt 0:00:12]} 30. Kh2 {[%emt 0:00:19]} Ra3 {[%emt 0:00:24]} 31. Rb1 {[%emt 0:00:20]} Kg7 {[%emt 0:00:21]} 32. Kg3 {[%emt 0:00:02]} b5 {[%emt 0:00:21]} 33. Rc2 {[%emt 0:00:43]} bxc4 {[%emt 0:00:16]} 34. Rxc4 {[%emt 0:00:15]} Rb7 {[%emt 0:00:18]} 35. Rd4 {[%emt 0:01:04]} Rbxb3 {[%emt 0:00:15]} 36. Rxb3 {[%emt 0:00:01]} Rxb3 {[%emt 0:00:01]} 37. Kf2 {[%emt 0:00:08]} Nxg4+ {[%emt 0:00:14]} 38. Rxg4 {[%emt 0:00:05]} Rxd3 {[%emt 0:00:01]} 39. Rxg5+ {[%emt 0:00:02]} Kf6 {[%emt 0:00:01]} 0-1

[Event "NSV Open-ch Rapid 2019"]
[Site "Lueneburg"]
[Date "2019.08.03"]
[Round "1.11"]
[White "Ramme, Christoph"]
[Black "Bargsten, Justus"]
[Result "0-1"]
[ECO "B33"]
[WhiteElo "2154"]
[BlackElo "1946"]
[Annotator "ChessBase"]
[PlyCount "104"]
[EventDate "2019.08.03"]
[EventType "swiss"]
[EventCountry "GER"]
[SourceTitle "playchess.com"]
[Source "ChessBase"]
[SourceQuality "1"]
[TimeControl "600+5"]

1. e4 {[%emt 0:00:00]} c5 {[%emt 0:00:00]} 2. Nf3 {[%emt 0:00:00]} Nc6 {[%emt 0:00:00]} 3. d4 {[%emt 0:00:00]} cxd4 {[%emt 0:00:00]} 4. Nxd4 {[%emt 0:00:00]} Nf6 {[%emt 0:00:00]} 5. Nc3 {[%emt 0:00:00]} e5 {[%emt 0:00:00]} 6. Ndb5 {[%emt 0:00:01]} d6 {[%emt 0:00:01]} 7. Nd5 {[%emt 0:00:02]} Nxd5 {[%emt 0:00:01]} 8. exd5 {[%emt 0:00:01]} Ne7 {[%emt 0:00:01]} 9. c4 {[%emt 0:00:10]} Ng6 {[%emt 0:00:01]} 10. Be2 {[%emt 0:00:16]} Be7 {[%emt 0:00:02]} 11. O-O {[%emt 0:00:08]} O-O {[%emt 0:00:03]} 12. a4 {[%emt 0:00:05]} f5 {[%emt 0:00:05]} 13. a5 {[%emt 0:00:04]} a6 {[%emt 0:00:13]} 14. Nc3 {[%emt 0:00:02]} f4 {[%emt 0:00:02]} 15. b4 {[%emt 0:00:15]} Bf5 {[%emt 0:00:25]} 16. f3 {[%emt 0:00:17]} Bf6 {[%emt 0:00:07]} 17. Ne4 {[%emt 0:00:13]} Rc8 {[%emt 0:00:26]} 18. Bd2 {[%emt 0:00:19]} b6 {[%emt 0:00:35]} 19. Be1 {[%emt 0:00:26]} bxa5 {[%emt 0:00:23]} 20. bxa5 {[%emt 0:00:03]} Qd7 {[%emt 0:01:49]} 21. Bf2 {[%emt 0:00:30]} Bd8 {[%emt 0:00:02]} 22. c5 {[%emt 0:00:43]} Bxe4 {[%emt 0:00:29]} 23. c6 {[%emt 0:00:14]} Rxc6 {[%emt 0:00:49]} 24. fxe4 {[%emt 0:00:15]} Rc7 {[%emt 0:00:36]} 25. Bxa6 {[%emt 0:00:20]} f3 {[%emt 0:00:31]} 26. gxf3 {[%emt 0:00:49]} Ra7 {[%emt 0:00:09]} 27. Qd3 {[%emt 0:00:42]} Nf4 {[%emt 0:00:02]} 28. Qd2 {[%emt 0:00:57]} Rxa6 {[%emt 0:00:04]} 29. Bg3 {[%emt 0:00:11]} Qa7+ {[%emt 0:00:18]} 30. Kh1 {[%emt 0:00:19]} Rxa5 {[%emt 0:00:05]} 31. Rxa5 {[%emt 0:00:08]} Qxa5 {[%emt 0:00:01]} 32. Bxf4 {[%emt 0:00:27]} Rxf4 {[%emt 0:00:03]} 33. Qb2 {[%emt 0:00:02]} Qb6 {[%emt 0:00:08]} 34. Qc1 {[%emt 0:00:13]} h5 {[%emt 0:00:44]} 35. Qc8 {[%emt 0:00:15]} Kh7 {[%emt 0:00:06]} 36. Qd7 {[%emt 0:00:13]} Qc7 {[%emt 0:00:32]} 37. Qh3 {[%emt 0:00:19]} h4 {[%emt 0:00:03]} 38. Rg1 {[%emt 0:00:08]} Bf6 {[%emt 0:00:03]} 39. Rf1 {[%emt 0:00:09]} Qc4 {[%emt 0:00:04]} 40. Kg2 {[%emt 0:00:11]} Bg5 {[%emt 0:00:32]} 41. Qe6 {[%emt 0:00:11]} Rf6 {[%emt 0:00:09]} 42. Qg4 {[%emt 0:00:02]} Rg6 {[%emt 0:00:10]} 43. Qh3 {[%emt 0:00:31]} Qe2+ {[%emt 0:00:10]} 44. Kh1 {[%emt 0:00:07]} Bf4 {[%emt 0:00:21]} 45. Rg1 {[%emt 0:00:29]} Rxg1+ {[%emt 0:00:05]} 46. Kxg1 {[%emt 0:00:02]} Qe1+ {[%emt 0:00:03]} 47. Kg2 {[%emt 0:00:01]} Qe2+ {[%emt 0:00:17]} 48. Kh1 {[%emt 0:00:03]} Qxh2+ {[%emt 0:00:16]} 49. Qxh2 {[%emt 0:00:02]} Bxh2 {[%emt 0:00:01]} 50. Kxh2 {[%emt 0:00:01]} Kh6 {[%emt 0:00:01]} 51. Kh3 {[%emt 0:00:14]} Kg5 {[%emt 0:00:01]} 52. Kg2 {[%emt 0:00:04]} Kf4 {[%emt 0:00:01]} 0-1

[Event "NSV Open-ch Rapid 2019"]
[Site "Lueneburg"]
[Date "2019.08.03"]
[Round "1.13"]
[White "Stork, Oliver"]
[Black "Kolhoff, Manfred"]
[Result "1-0"]
[ECO "D00"]
[WhiteElo "2322"]
[BlackElo "1616"]
[Annotator "ChessBase"]
[PlyCount "69"]
[EventDate "2019.08.03"]
[EventType "swiss"]
[EventCountry "GER"]
[SourceTitle "playchess.com"]
[Source "ChessBase"]
[SourceQuality "1"]
[TimeControl "600+5"]

1. d4 {[%emt 0:00:00]} d5 {[%emt 0:00:00]} 2. Bf4 {[%emt 0:00:00]} Nf6 {[%emt 0:00:03]} 3. e3 {[%emt 0:00:01]} Bf5 {[%emt 0:00:19]} 4. c4 {[%emt 0:00:03]} e6 {[%emt 0:00:05]} 5. Nc3 {[%emt 0:00:03]} Bb4 {[%emt 0:00:22]} 6. Qb3 {[%emt 0:00:18]} Bxc3+ {[%emt 0:00:05]} 7. bxc3 {[%emt 0:00:12]} b6 {[%emt 0:00:23]} 8. Nf3 {[%emt 0:00:16]} O-O {[%emt 0:00:01]} 9. h3 {[%emt 0:00:22]} Nbd7 {[%emt 0:00:10]} 10. Ne5 {[%emt 0:00:12]} c5 {[%emt 0:00:59]} 11. Be2 {[%emt 0:00:23]} Rc8 {[%emt 0:00:19]} 12. O-O {[%emt 0:00:28]} Ne4 {[%emt 0:00:19]} 13. Rfd1 {[%emt 0:00:58]} dxc4 {[%emt 0:00:06]} 14. Nxc4 {[%emt 0:00:20]} Qh4 {[%emt 0:00:57]} 15. Rf1 {[%emt 0:01:21]} a6 {[%emt 0:07:07]} 16. Qa3 {[%emt 0:01:44]} b5 {[%emt 0:00:00]} 17. Nd6 {[%emt 0:00:02]} Rc6 {[%emt 0:00:00]} 18. Nxe4 {[%emt 0:00:29]} Bxe4 {[%emt 0:00:00]} 19. Bg3 {[%emt 0:00:02]} Qg5 {[%emt 0:00:00]} 20. Kh2 {[%emt 0:00:43]} h5 {[%emt 0:00:00]} 21. h4 {[%emt 0:00:02]} Qg6 {[%emt 0:00:00]} 22. f3 {[%emt 0:00:14]} Bd5 {[%emt 0:00:00]} 23. e4 {[%emt 0:00:09]} Bc4 {[%emt 0:00:00]} 24. Bxc4 {[%emt 0:00:01]} bxc4 {[%emt 0:00:00]} 25. Qa4 {[%emt 0:00:05]} Rd6 {[%emt 0:00:00]} 26. Bxd6 {[%emt 0:00:02]} Rd8 {[%emt 0:00:00]} 27. Bc7 {[%emt 0:00:04]} Qf6 {[%emt 0:00:00]} 28. Bxd8 {[%emt 0:00:06]} Qxd8 {[%emt 0:00:00]} 29. g3 {[%emt 0:00:04]} cxd4 {[%emt 0:00:00]} 30. cxd4 {[%emt 0:00:02]} Qc7 {[%emt 0:00:00]} 31. Rac1 {[%emt 0:00:07]} a5 {[%emt 0:00:00]} 32. Qxc4 {[%emt 0:00:03]} Qd6 {[%emt 0:00:00]} 33. e5 {[%emt 0:00:32]} Qe7 {[%emt 0:00:00]} 34. Qc8+ {[%emt 0:00:05]} Kh7 {[%emt 0:00:00]} 35. Rc7 {[%emt 0:00:02]} 1-0